fUSD/lending_fUSD_20260116
["ID","MTS","AMOUNT","RATE_DAILY","PERIOD"]
[402147472,1768553607677,-602.84,0.00036438,10]
[402147473,1768553607693,-681.64,0.00036438,10]
[402147474,1768553607709,-946.6,0.00036438,10]
[402147475,1768553607724,-982.01,0.00036438,10]
[402147476,1768553607739,-500.0,0.00036438,10]
[402147477,1768553607755,-500.0,0.00036438,10]
[402147478,1768553607770,-500.0,0.00036438,10]
[402147479,1768553607783,-1431.59,0.00036438,10]
[402147480,1768553607797,-500.0,0.00036438,10]
[402147481,1768553607811,-513.83191366,0.00036438,10]
[402147482,1768553607827,-500.0,0.00036438,10]
[402147483,1768553607840,-582.81,0.00036438,10]
[402147484,1768553607855,-500.0,0.00036438,10]
[402147485,1768553607869,-1103.68,0.00036438,5]
[402147486,1768553607885,-500.0,0.00036438,10]
[402147487,1768553607899,-500.0,0.00036438,10]
[402147488,1768553607913,-500.0,0.00036438,10]
[402147489,1768553607927,-500.0,0.00036438,10]
[402147490,1768553607940,-511.96657785,0.00036438,10]
[402147491,1768553607954,-500.0,0.00036438,10]
[402147492,1768553607969,-500.0,0.00036438,10]
[402147493,1768553607983,-703.99,0.00036438,10]
[402147494,1768553607997,-872.15,0.00036438,10]
[402147495,1768553608013,-548.64,0.00036438,10]
[402147496,1768553608030,-850.54,0.00036438,10]
[402147497,1768553608044,-288.90229775,0.00036438,10]
[402147498,1768553608059,-1034.71,0.00036438,10]
[402147499,1768553608073,-500.0,0.00036438,10]
[402147500,1768553608087,-500.0,0.00036438,10]
[402147501,1768553608101,-499.03727827,0.00036438,10]
[402147502,1768553608115,-500.0,0.00036438,10]
[402147503,1768553608128,-500.0,0.00036438,10]
[402147504,1768553608143,-712.34,0.00036438,10]
[402147505,1768553608158,-500.0,0.00036438,10]
[402147506,1768553608172,-500.0,0.00036438,10]
[402147507,1768553608187,-500.0,0.00036438,10]
[402147508,1768553608201,-1048.59,0.00036438,10]
[402147509,1768553608215,-500.0,0.00036438,10]
[402147510,1768553608229,-500.0,0.00036438,10]
[402147511,1768553608242,-503.05386455,0.00036438,10]
[402147512,1768553608257,-503.44155378,0.00036438,10]
[402147513,1768553608271,-500.0,0.00036438,10]
[402147514,1768553608286,-500.0,0.00036438,10]
[402147515,1768553608303,-797.78,0.00036438,10]
[402147516,1768553608317,-864.57,0.00036438,10]
[402147517,1768553608332,-500.0,0.00036438,10]
[402147518,1768553608346,-280.82348773,0.00036438,10]
[402147519,1768553608368,-500.0,0.00036438,10]
[402147520,1768553608382,-507.2834974,0.00036438,10]
[402147521,1768553608399,-500.0,0.00036438,10]
[402147522,1768553608414,-669.34,0.00036438,10]
[402147523,1768553608427,-571.66992939,0.00036438,10]
[402147524,1768553608442,-500.0,0.00036438,10]
[402147525,1768553608456,-1695.98,0.00036438,10]
[402147526,1768553608471,-500.0,0.00036438,10]
[402147527,1768553608486,-500.0,0.00036438,10]
[402147528,1768553608500,-500.0,0.00036438,10]
[402147529,1768553608514,-500.0,0.00036438,10]
[402147530,1768553608528,-746.93,0.00036438,10]
[402147531,1768553608546,-627.88268977,0.00036438,10]
[402147532,1768553608559,-710.63,0.00036438,10]
[402147533,1768553608575,-500.0,0.00036438,10]
[402147534,1768553608589,-576.53,0.00036438,10]
[402147535,1768553608604,-551.55,0.00036438,10]
[402147536,1768553608617,-848.31,0.00036438,10]
[402147537,1768553608633,-500.0,0.00036438,10]
[402147538,1768553608648,-500.0,0.00036438,10]
[402147539,1768553608661,-500.0,0.00036438,10]
[402147540,1768553608675,-500.0,0.00036438,10]
[402147541,1768553608690,-640.15,0.00036438,10]
[402147542,1768553608704,-893.03,0.00036438,10]
[402147543,1768553608719,-829.07,0.00036438,10]
[402147544,1768553608733,-500.0,0.00036438,10]
[402147545,1768553608747,-566.75157584,0.00036438,10]
[402147546,1768553608762,-500.0,0.00036438,10]
[402147547,1768553608777,-1044.65,0.00036438,2]
[402147548,1768553608791,-580.09,0.00036438,10]
[402147549,1768553608807,-500.0,0.00036438,10]
[402147550,1768553608820,-2280.83,0.00036438,10]
[402147551,1768553608835,-950.38,0.00036438,10]
[402147552,1768553608849,-925.85,0.00036438,10]
[402147553,1768553608863,-226.20967811,0.00036438,10]
[402147554,1768553609399,-926.38,0.00036438,10]
[402147555,1768553609422,-1091.37,0.00036438,10]
[402147556,1768553609431,-934.74,0.00036438,10]
[402147557,1768553609440,-375.64307142,0.00036438,10]
[402147558,1768553609449,-500.0,0.00036438,10]
[402147559,1768553609458,-500.0,0.00036438,2]
[402147560,1768553609467,-1096.7,0.00036438,10]
[402147561,1768553609476,-500.0,0.00036438,120]
[402147562,1768553609485,-500.0,0.00036438,10]
[402147563,1768553609495,-500.0,0.00036438,10]
[402147564,1768553609504,-500.0,0.00036438,10]
[402147565,1768553609513,-500.0,0.00036438,10]
[402147566,1768553609522,-615.77,0.00036438,10]
[402147567,1768553609533,-500.0,0.00036438,10]
[402147568,1768553609543,-694.36,0.00036438,10]
[402147569,1768553609553,-816.08,0.00036438,10]
[402147570,1768553609563,-703.54,0.00036438,10]
[402147571,1768553609573,-500.0,0.00036438,10]
[402147572,1768553609583,-1150.42,0.00036438,10]
[402147573,1768553609592,-500.0,0.00036438,10]
[402147574,1768553609602,-500.0,0.00036438,10]
[402147575,1768553609612,-658.36,0.00036438,10]
[402147576,1768553609622,-788.58,0.00036438,10]
[402147577,1768553609632,-578.18,0.00036438,10]
[402147578,1768553609641,-1428.02,0.00036438,10]
[402147579,1768553609651,-500.0,0.00036438,10]
[402147580,1768553609660,-705.82,0.00036438,10]
[402147581,1768553609669,-931.05,0.00036438,10]
[402147582,1768553609678,-577.64,0.00036438,10]
[402147583,1768553609687,-528.44,0.00036438,10]
[402147584,1768553609696,-500.0,0.00036438,10]
[402147585,1768553609705,-2108.45,0.00036438,10]
[402147586,1768553609715,-500.0,0.00036438,10]
[402147587,1768553609723,-1149.82,0.00036438,10]
[402147588,1768553609733,-500.0,0.00036438,10]
[402147589,1768553609743,-683.35,0.00036438,10]
[402147590,1768553609753,-500.0,0.00036438,10]
[402147591,1768553609765,-959.04,0.00036438,10]
[402147592,1768553609775,-500.0,0.00036438,10]
[402147593,1768553609784,-500.0,0.00036438,10]
[402147594,1768553609794,-500.0,0.00036438,10]
[402147595,1768553609803,-700.17,0.00036438,10]
[402147596,1768553609812,-500.0,0.00036438,10]
[402147597,1768553609822,-500.0,0.00036438,10]
[402147598,1768553609831,-500.0,0.00036438,10]
[402147599,1768553609840,-625.74,0.00036438,10]
[402147600,1768553609850,-500.0,0.00036438,10]
[402147601,1768553609860,-500.0,0.00036438,10]
[402147602,1768553609870,-500.0,0.00036438,10]
[402147603,1768553609879,-754.4,0.00036438,10]
[402147604,1768553609889,-500.0,0.00036438,10]
[402147605,1768553609898,-500.0,0.00036438,10]
[402147606,1768553609907,-737.5,0.00036438,10]
[402147607,1768553609917,-637.87,0.00036438,10]
[402147608,1768553609926,-625.2,0.00036438,10]
[402147609,1768553609935,-641.84,0.00036438,10]
[402147610,1768553609945,-610.78,0.00036438,10]
[402147611,1768553609955,-544.89,0.00036438,10]
[402147612,1768553609964,-523.76,0.00036438,10]
[402147613,1768553609974,-500.0,0.00036438,10]
[402147614,1768553609983,-500.0,0.00036438,10]
[402147615,1768553609993,-500.0,0.00036438,10]
[402147616,1768553610002,-500.0,0.00036438,10]
[402147617,1768553610011,-551.65,0.00036438,10]
[402147618,1768553610020,-1594.08,0.00036438,10]
[402147619,1768553610029,-572.94590744,0.00036438,10]
[402147620,1768553610039,-500.0,0.00036438,10]
[402147621,1768553610048,-500.0,0.00036438,10]
[402147622,1768553610058,-500.0,0.00036438,10]
[402147623,1768553610067,-500.0,0.00036438,10]
[402147624,1768553610077,-796.44,0.00036438,10]
[402147625,1768553610087,-500.0,0.00036438,10]
[402147626,1768553610096,-500.0,0.00036438,10]
[402147627,1768553610105,-500.0,0.00036438,10]
[402147628,1768553610114,-500.0,0.00036438,10]
[402147629,1768553610123,-1146.06,0.00036438,10]
[402147630,1768553610133,-567.16,0.00036438,10]
[402147631,1768553610142,-517.33,0.00036438,10]
[402147632,1768553610151,-564.94803569,0.00036438,10]
[402147633,1768553610160,-500.0,0.00036438,10]
[402147634,1768553610169,-500.0,0.00036438,10]
[402147635,1768553610179,-500.0,0.00036438,10]
[402147636,1768553610187,-522.75,0.00036438,10]
[402147637,1768553610196,-546.22258909,0.00036438,10]
[402147638,1768553610205,-500.0,0.00036438,10]
[402147639,1768553610214,-500.0,0.00036438,10]
[402147640,1768553610223,-500.0,0.00036438,10]
[402147641,1768553610232,-500.0,0.00036438,10]
[402147642,1768553610241,-751.2,0.00036438,10]
[402147643,1768553610250,-500.0,0.00036438,10]
[402147644,1768553610260,-662.29,0.00036438,10]
[402147645,1768553610268,-669.08,0.00036438,10]
[402147646,1768553610278,-500.0,0.00036438,10]
[402147647,1768553610287,-677.54,0.00036438,10]
[402147648,1768553610296,-1168.86,0.00036438,10]
[402147649,1768553610306,-500.0,0.00036438,10]
[402147650,1768553610315,-1117.06,0.00036438,10]
[402147651,1768553610324,-1648.88,0.00036438,10]
[402147652,1768553610333,-636.52,0.00036438,10]
[402147653,1768553610343,-636.43,0.00036438,10]
[402147654,1768553610352,-504.7011778,0.00036438,10]
[402147655,1768553610361,-575.94,0.00036438,10]
[402147656,1768553610370,-716.91,0.00036438,10]
[402147657,1768553610379,-876.77,0.00036438,10]
[402147658,1768553610389,-500.0,0.00036438,10]
[402147659,1768553610397,-500.0,0.00036438,10]
[402147660,1768553610406,-500.0,0.00036438,10]
[402147661,1768553610415,-500.0,0.00036438,10]
[402147662,1768553610424,-500.0,0.00036438,10]
[402147663,1768553610433,-990.78,0.00036438,10]
[402147664,1768553610442,-541.15,0.00036438,10]
[402147665,1768553610451,-509.93072879,0.00036438,10]
[402147666,1768553610460,-1150.93,0.00036438,10]
[402147667,1768553610469,-909.88,0.00036438,10]
[402147668,1768553610478,-500.0,0.00036438,10]
[402147669,1768553610487,-903.48,0.00036438,10]
[402147670,1768553610495,-500.0,0.00036438,10]
[402147671,1768553610504,-527.48,0.00036438,10]
[402147672,1768553610513,-500.0,0.00036438,10]
[402147673,1768553610522,-500.0,0.00036438,10]
[402147674,1768553610531,-744.14,0.00036438,10]
[402147675,1768553610544,-507.96,0.00036438,10]
[402147676,1768553610553,-662.66,0.00036438,10]
[402147677,1768553610562,-500.0,0.00036438,10]
[402147678,1768553610571,-281.31562665,0.00036438,10]
[402147679,1768553610581,-690.13,0.00036438,10]
[402147680,1768553610590,-519.9,0.00036438,10]
[402147681,1768553610599,-1521.24,0.00036438,10]
[402147682,1768553610609,-823.6,0.00036438,10]
[402147683,1768553610618,-500.0,0.00036438,10]
[402147684,1768553610627,-152.18253564,0.00036438,10]
[402147685,1768553610636,-500.0,0.00036438,10]
[402147686,1768553610645,-500.0,0.00036438,10]
[402147687,1768553610654,-1331.43,0.00036438,10]
[402147688,1768553610663,-500.0,0.00036438,10]
[402147689,1768553610672,-732.95,0.00036438,10]
[402147690,1768553610681,-1326.59,0.00036438,10]
[402147691,1768553610690,-1280.38,0.00036438,10]
[402147692,1768553610699,-500.0,0.00036438,10]
[402147693,1768553610708,-500.0,0.00036438,10]
[402147694,1768553610717,-791.99,0.00036438,10]
[402147695,1768553610726,-500.0,0.00036438,10]
[402147696,1768553610734,-500.0,0.00036438,10]
[402147697,1768553610743,-512.72,0.00036438,10]
[402147698,1768553610752,-500.0,0.00036438,120]
[402147699,1768553610762,-979.74,0.00036438,10]
[402147700,1768553610771,-500.0,0.00036438,10]
[402147701,1768553610781,-500.0,0.00036438,10]
[402147702,1768553610790,-500.0,0.00036438,10]
[402147703,1768553610799,-644.37,0.00036438,10]
[402147704,1768553610809,-577.2,0.00036438,10]
[402147705,1768553610818,-970.71,0.00036438,10]
[402147706,1768553610827,-570.0,0.00036438,10]
[402147707,1768553610836,-500.0,0.00036438,10]
[402147708,1768553610845,-500.0,0.00036438,10]
[402147709,1768553610854,-500.0,0.00036438,10]
[402147710,1768553610864,-500.0,0.00036438,10]
[402147711,1768553610873,-500.0,0.00036438,10]
[402147712,1768553610882,-500.0,0.00036438,10]
[402147713,1768553610891,-751.52,0.00036438,10]
[402147714,1768553610901,-514.16980014,0.00036438,10]
[402147715,1768553610910,-1015.29,0.00036438,10]
[402147716,1768553610919,-500.0,0.00036438,10]
[402147717,1768553610928,-518.25,0.00036438,10]
[402147718,1768553610937,-500.0,0.00036438,10]
[402147719,1768553610946,-685.85,0.00036438,10]
[402147720,1768553610956,-612.29,0.00036438,10]
[402147721,1768553610965,-500.0,0.00036438,10]
[402147722,1768553610975,-500.0,0.00036438,10]
[402147723,1768553610984,-806.51,0.00036438,10]
[402147724,1768553610993,-500.0,0.00036438,10]
[402147725,1768553611003,-500.0,0.00036438,10]
[402147726,1768553611013,-500.0,0.00036438,10]
[402147727,1768553611022,-500.0,0.00036438,10]
[402147728,1768553611032,-500.0,0.00036438,10]
[402147729,1768553611041,-695.39,0.00036438,10]
[402147730,1768553611051,-549.65,0.00036438,10]
[402147731,1768553611060,-607.83,0.00036438,10]
[402147732,1768553611070,-500.0,0.00036438,10]
[402147733,1768553611079,-1220.06,0.00036438,10]
[402147734,1768553611089,-1662.06,0.00036438,10]
[402147735,1768553611098,-573.41709126,0.00036438,10]
[402147736,1768553611107,-500.0,0.00036438,10]
[402147737,1768553611116,-500.0,0.00036438,10]
[402147738,1768553611126,-500.0,0.00036438,10]
[402147739,1768553611135,-500.0,0.00036438,10]
[402147740,1768553611144,-500.0,0.00036438,10]
[402147741,1768553611153,-500.0,0.00036438,10]
[402147742,1768553611163,-500.0,0.00036438,10]
[402147743,1768553611172,-1639.22,0.00036438,10]
[402147744,1768553611181,-500.0,0.00036438,10]
[402147745,1768553611190,-500.0,0.00036438,10]
[402147746,1768553611200,-500.0,0.00036438,10]
[402147747,1768553611209,-500.0,0.00036438,10]
[402147748,1768553611218,-908.6,0.00036438,10]
[402147749,1768553611227,-500.0,0.00036438,10]
[402147750,1768553611236,-500.0,0.00036438,10]
[402147751,1768553611245,-507.40552107,0.00036438,10]
[402147752,1768553611254,-503.16297672,0.00036438,10]
[402147753,1768553611264,-1617.91,0.00036438,10]
[402147754,1768553611273,-816.75,0.00036438,10]
[402147755,1768553611283,-1143.12,0.00036438,10]
[402147756,1768553611292,-500.0,0.00036438,10]
[402147757,1768553611302,-500.0,0.00036438,10]
[402147758,1768553611312,-500.0,0.00036438,10]
[402147759,1768553611322,-500.0,0.00036438,10]
[402147760,1768553611331,-716.45,0.00036438,10]
[402147761,1768553611341,-500.0,0.00036438,10]
[402147762,1768553611350,-1027.78,0.00036438,10]
[402147763,1768553611359,-885.26,0.00036438,10]
[402147764,1768553611368,-500.0,0.00036438,10]
[402147765,1768553611378,-500.0,0.00036438,10]
[402147766,1768553611387,-678.11,0.00036438,10]
[402147767,1768553611397,-508.19086157,0.00036438,10]
[402147768,1768553611406,-500.0,0.00036438,10]
[402147769,1768553611416,-1096.77,0.00036438,10]
[402147770,1768553611425,-500.0,0.00036438,10]
[402147771,1768553611433,-500.0,0.00036438,10]
[402147772,1768553611443,-502.20024407,0.00036438,10]
[402147773,1768553611452,-681.79,0.00036438,10]
[402147774,1768553611461,-500.0,0.00036438,10]
[402147775,1768553611470,-702.08,0.00036438,10]
[402147776,1768553611479,-1477.47,0.00036438,10]
[402147777,1768553611488,-500.0,0.00036438,10]
[402147778,1768553611498,-500.0,0.00036438,10]
[402147779,1768553611507,-989.99,0.00036438,10]
[402147780,1768553611516,-555.28203727,0.00036438,10]
[402147781,1768553611525,-676.3,0.00036438,10]
[402147782,1768553611539,-500.0,0.00036438,10]
[402147783,1768553611548,-500.0,0.00036438,10]
[402147784,1768553611557,-500.0,0.00036438,10]
[402147785,1768553611566,-573.06,0.00036438,10]
[402147786,1768553611576,-912.84,0.00036438,10]
[402147787,1768553611585,-500.0,0.00036438,10]
[402147788,1768553611594,-807.54,0.00036438,10]
[402147789,1768553611604,-500.0,0.00036438,10]
[402147790,1768553611615,-591.47,0.00036438,10]
[402147791,1768553611625,-500.0,0.00036438,10]
[402147792,1768553611635,-500.0,0.00036438,10]
[402147793,1768553611645,-1293.68,0.00036438,10]
[402147794,1768553611654,-500.0,0.00036438,10]
[402147795,1768553611663,-500.0,0.00036438,10]
[402147796,1768553611673,-500.0,0.00036438,10]
[402147797,1768553611682,-500.0,0.00036438,10]
[402147798,1768553611691,-500.0,0.00036438,10]
[402147799,1768553611700,-500.0,0.00036438,10]
[402147800,1768553611709,-618.86,0.00036438,10]
[402147801,1768553611718,-500.0,0.00036438,10]
[402147802,1768553611727,-834.67,0.00036438,10]
[402147803,1768553611736,-500.0,0.00036438,10]
[402147804,1768553611745,-4949.68,0.00036438,10]
[402147805,1768553611754,-500.0,0.00036438,10]
[402147806,1768553611763,-1730.65,0.00036438,10]
[402147807,1768553611772,-500.0,0.00036438,10]
[402147808,1768553611782,-500.46,0.00036438,10]
[402147809,1768553611791,-391.54679176,0.00036438,10]
[402147810,1768553611801,-930.98,0.00036438,10]
[402147811,1768553611810,-875.62,0.00036438,10]
[402147812,1768553611820,-500.0,0.00036438,10]
[402147813,1768553611829,-500.0,0.00036438,10]
[402147814,1768553611838,-450.80341602,0.00036438,10]
[402147815,1768553611849,-500.0,0.00036438,10]
[402147816,1768553611859,-1041.0,0.00036438,10]
[402147817,1768553611868,-500.0,0.00036438,10]
[402147818,1768553611878,-500.0,0.00036438,10]
[402147819,1768553611888,-524.92,0.00036438,10]
[402147820,1768553611898,-1262.31,0.00036438,10]
[402147821,1768553611908,-591.83,0.00036438,10]
[402147822,1768553611917,-500.0,0.00036438,10]
[402147823,1768553611927,-500.0,0.00036438,10]
[402147824,1768553611937,-500.0,0.00036438,10]
[402147825,1768553611946,-614.68,0.00036438,10]
[402147826,1768553611956,-500.0,0.00036438,10]
[402147827,1768553611965,-790.99,0.00036438,10]
[402147828,1768553611975,-500.0,0.00036438,10]
[402147829,1768553611985,-1848.72,0.00036438,10]
[402147830,1768553611994,-353.65,0.00036438,2]
[402147831,1768553612003,-500.0,0.00036438,10]
[402147832,1768553612012,-1044.21,0.00036438,10]
[402147833,1768553612021,-500.0,0.00036438,2]
[402147834,1768553612031,-500.0,0.00036438,10]
[402147835,1768553612041,-500.0,0.00036438,10]
[402147836,1768553612050,-500.0,0.00036438,10]
[402147837,1768553612060,-1947.44,0.00036438,10]
[402147838,1768553612069,-629.32,0.00036438,10]
[402147839,1768553612079,-1553.42,0.00036438,10]
[402147840,1768553612088,-410.21687205,0.00036438,10]
[402147841,1768553612098,-1024.82,0.00036438,10]
[402147842,1768553612107,-500.0,0.00036438,10]
[402147843,1768553612117,-875.71,0.00036438,10]
[402147844,1768553612126,-500.0,0.00036438,10]
[402147845,1768553612136,-500.0,0.00036438,10]
[402147846,1768553612145,-795.66,0.00036438,10]
[402147847,1768553612154,-500.0,0.00036438,10]
[402147848,1768553612164,-1036.49,0.00036438,10]
[402147849,1768553612173,-1013.98,0.00036438,10]
[402147850,1768553612182,-562.25,0.00036438,10]
[402147851,1768553612191,-548.64,0.00036438,10]
[402147852,1768553612200,-543.96,0.00036438,10]
[402147853,1768553612209,-1422.5,0.00036438,10]
[402147854,1768553612219,-500.0,0.00036438,10]
[402147855,1768553612228,-1126.68,0.00036438,10]
[402147856,1768553612238,-2121.76,0.00036438,10]
[402147857,1768553612247,-1905.23,0.00036438,10]
[402147858,1768553612256,-532.76,0.00036438,10]
[402147859,1768553612550,-502.52,0.00036438,10]
[402147860,1768553612561,-500.0,0.00036438,10]
[402147861,1768553612570,-500.0,0.00036438,10]
[402147862,1768553612581,-500.0,0.00036438,10]
[402147863,1768553612591,-540.07,0.00036438,10]
[402147864,1768553612600,-1016.35,0.00036438,10]
[402147865,1768553612610,-5056.94,0.00036438,10]
[402147866,1768553612620,-500.0,0.00036438,10]
[402147867,1768553612630,-592.16,0.00036438,10]
[402147868,1768553612640,-889.56,0.00036438,10]
[402147869,1768553612649,-500.0,0.00036438,10]
[402147870,1768553612659,-500.0,0.00036438,10]
[402147871,1768553612668,-1150.45,0.00036438,10]
[402147872,1768553612678,-1345.33,0.00036438,10]
[402147873,1768553612686,-648.45,0.00036438,10]
[402147874,1768553612696,-1052.14,0.00036438,10]
[402147875,1768553612706,-500.0,0.00036438,10]
[402147876,1768553612716,-990.43,0.00036438,10]
[402147877,1768553612725,-500.0,0.00036438,10]
[402147878,1768553612734,-877.08,0.00036438,10]
[402147879,1768553612744,-1245.81,0.00036438,10]
[402147880,1768553612754,-500.0,0.00036438,10]
[402147881,1768553612763,-665.86,0.00036438,10]
[402147882,1768553612772,-1029.8,0.00036438,10]
[402147883,1768553612782,-500.0,0.00036438,10]
[402147884,1768553612791,-1298.7,0.00036438,10]
[402147885,1768553612801,-581.72,0.00036438,10]
[402147886,1768553612810,-850.69,0.00036438,10]
[402147887,1768553612823,-995.5,0.00036438,10]
[402147888,1768553612833,-1075.5,0.00036438,10]
[402147889,1768553612842,-500.0,0.00036438,10]
[402147890,1768553612851,-500.0,0.00036438,10]
[402147891,1768553612861,-529.03,0.00036438,10]
[402147892,1768553612870,-500.0,0.00036438,10]
[402147893,1768553612880,-519.23,0.00036438,10]
[402147894,1768553612889,-716.08,0.00036438,10]
[402147895,1768553612898,-500.0,0.00036438,10]
[402147896,1768553612908,-1363.31,0.00036438,10]
[402147897,1768553612917,-598.71,0.00036438,10]
[402147898,1768553612927,-1221.02,0.00036438,10]
[402147899,1768553612937,-1064.34,0.00036438,10]
[402147900,1768553612947,-823.04,0.00036438,10]
[402147901,1768553612956,-500.0,0.00036438,10]
[402147902,1768553612965,-2853.19,0.00036438,10]
[402147903,1768553612974,-500.0,0.00036438,10]
[402147904,1768553612984,-500.0,0.00036438,10]
[402147905,1768553612993,-500.0,0.00036438,10]
[402147906,1768553613003,-549.28,0.00036438,10]
[402147907,1768553613012,-500.0,0.00036438,10]
[402147908,1768553613022,-500.0,0.00036438,10]
[402147909,1768553613031,-913.43,0.00036438,10]
[402147910,1768553613041,-591.9,0.00036438,10]
[402147911,1768553613050,-500.0,0.00036438,10]
[402147912,1768553613060,-500.0,0.00036438,10]
[402147913,1768553613069,-2393.97,0.00036438,10]
[402147914,1768553613079,-511.01053995,0.00036438,10]
[402147915,1768553613088,-500.0,0.00036438,10]
[402147916,1768553613097,-500.0,0.00036438,10]
[402147917,1768553613107,-2257.21,0.00036438,10]
[402147918,1768553613117,-589.47,0.00036438,10]
[402147919,1768553613126,-805.83,0.00036438,10]
[402147920,1768553613136,-546.1,0.00036438,10]
[402147921,1768553613145,-500.0,0.00036438,10]
[402147922,1768553613154,-500.0,0.00036438,10]
[402147923,1768553613163,-500.0,0.00036438,10]
[402147924,1768553613173,-1412.18,0.00036438,10]
[402147925,1768553613182,-500.0,0.00036438,10]
[402147926,1768553613192,-500.0,0.00036438,10]
[402147927,1768553613201,-1008.65499649,0.00036438,10]
[402147928,1768553613210,-500.0,0.00036438,10]
[402147929,1768553613219,-514.15042937,0.00036438,10]
[402147930,1768553613227,-500.0,0.00036438,10]
[402147931,1768553613236,-200.0,0.00036438,120]
[402147932,1768553613245,-712.99,0.00036438,10]
[402147933,1768553613255,-500.0,0.00036438,10]
[402147934,1768553613265,-1245.62,0.00036438,10]
[402147935,1768553613274,-661.07,0.00036438,10]
[402147936,1768553613283,-732.11,0.00036438,10]
[402147937,1768553613292,-693.86,0.00036438,10]
[402147938,1768553613301,-652.47,0.00036438,10]
[402147939,1768553613311,-1182.17,0.00036438,10]
[402147940,1768553613320,-713.12,0.00036438,10]
[402147941,1768553613329,-714.22,0.00036438,10]
[402147942,1768553613338,-652.5,0.00036438,10]
[402147943,1768553613347,-500.0,0.00036438,10]
[402147944,1768553613356,-500.0,0.00036438,10]
[402147945,1768553613365,-500.0,0.00036438,10]
[402147946,1768553613374,-1497.09,0.00036438,10]
[402147947,1768553613383,-1210.4,0.00036438,10]
[402147948,1768553613392,-1212.59,0.00036438,10]
[402147949,1768553613401,-941.66,0.00036438,10]
[402147950,1768553613410,-513.18356729,0.00036438,10]
[402147951,1768553613419,-1223.9,0.00036438,10]
[402147952,1768553613429,-500.0,0.00036438,10]
[402147953,1768553613438,-1292.5,0.00036438,10]
[402147954,1768553613448,-1141.45,0.00036438,10]
[402147955,1768553613457,-885.86,0.00036438,10]
[402147956,1768553613466,-500.0,0.00036438,10]
[402147957,1768553613476,-520.6,0.00036438,10]
[402147958,1768553613486,-3901.38,0.00036438,10]
[402147959,1768553613495,-1228.85,0.00036438,10]
[402147960,1768553613505,-532.57,0.00036438,10]
[402147961,1768553613514,-1219.5,0.00036438,10]
[402147962,1768553613523,-544.68,0.00036438,10]
[402147963,1768553613536,-2909.8,0.00036438,10]
[402147964,1768553613545,-858.87,0.00036438,10]
[402147965,1768553613554,-500.0,0.00036438,10]
[402147966,1768553613564,-993.01,0.00036438,10]
[402147967,1768553613574,-999.49,0.00036438,10]
[402147968,1768553613585,-500.0,0.00036438,10]
[402147969,1768553613594,-1760.07,0.00036438,10]
[402147970,1768553613605,-553.74,0.00036438,10]
[402147971,1768553613614,-500.0,0.00036438,10]